[Event "72nd RUS-ch Higher League 2019"]
[Site "Yaroslavl"]
[Date "2019.06.30"]
[Round "4.8"]
[White "Lomasov, Semyon"]
[Black "Grachev, Boris"]
[Result "1/2-1/2"]
[ECO "C42"]
[WhiteElo "2542"]
[BlackElo "2621"]
[Annotator "RC"]
[PlyCount "60"]
[EventDate "2019.06.27"]
[EventType "swiss"]
[EventCountry "RUS"]
[SourceTitle "playchess.com"]
[Source "ChessBase"]
[SourceQuality "1"]
[TimeControl "40/5400+30:1800+30"]

1. e4 {[%emt 0:02:51]} e5 {[%emt 0:00:00]} 2. Nf3 {[%emt 0:00:24]} Nf6 {[%emt 0:00:00]} 3. Nxe5 {[%emt 0:00:05]} d6 {[%emt 0:00:00]} 4. Nf3 {[%emt 0:00:07]} Nxe4 {[%emt 0:00:00]} 5. c4 {[%emt 0:00:43]} g6 {[%emt 0:15:08]} 6. d4 {[%emt 0:10:40]} Bg7 {[%emt 0:00:26]} 7. Bd3 {[%emt 0:00:06]} Nf6 {[%emt 0:00:16]} 8. O-O {[%emt 0:00:46]} O-O {[%emt 0:00:06]} 9. h3 {[%emt 0:00:47]} Nc6 {[%emt 0:02:43]} 10. Nc3 {[%emt 0:00:12]} Ne7 {[%emt 0:05:36]} 11. Re1 {[%emt 0:13:04]} Bf5 {[%emt 0:01:20]} 12. Bg5 {[%emt 0:01:06]} Bxd3 {[%emt 0:05:11]} 13. Qxd3 {[%emt 0:00:48]} h6 {[%emt 0:00:47]} 14. Bxf6 {[%emt 0:01:44]} Bxf6 {[%emt 0:00:58]} 15. Nd5 {[%emt 0:04:50]} Nxd5 {[%emt 0:00:51]} 16. cxd5 {[%emt 0:00:02]} Qd7 {[%emt 0:13:32]} 17. Rac1 {[%emt 0:01:57]} Rfe8 {[%emt 0:01:13]} 18. Rxe8+ {[%emt 0:02:19]} Rxe8 {[%emt 0:00:11]} 19. Qb3 {[%emt 0:05:43]} Qc8 {[%emt 0:07:57]} 20. Qa4 {[%emt 0:19:21]} a6 {[%emt 0:02:59]} 21. Rxc7 {[%emt 0:00:35]} Qxc7 {[%emt 0:00:08]} 22. Qxe8+ {[%emt 0:00:04]} Kg7 {[%emt 0:00:08]} 23. Qe3 {[%emt 0:02:48]} Qc2 {[%emt 0:03:02]} 24. Qb3 {[%emt 0:00:23]} Qc1+ {[%emt 0:03:02]} 25. Kh2 {[%emt 0:00:03]} Bxd4 {[%emt 0:11:47]} 26. Nxd4 {[%emt 0:00:07]} Qf4+ {[%emt 0:00:03]} 27. Kg1 {[%emt 0:12:36]} Qc1+ {[%emt 0:00:07]} 28. Kh2 {[%emt 0:00:06]} Qf4+ {[%emt 0:00:03]} 29. Kg1 {[%emt 0:00:05]} Qc1+ {[%emt 0:00:08]} 30. Kh2 {[%emt 0:00:04]} Qf4+ 1/2-1/2

[Event "72nd RUS-ch Higher League 2019"]
[Site "Yaroslavl"]
[Date "2019.06.30"]
[Round "4.15"]
[White "Bimiev, Ahmad"]
[Black "Rakhmanov, Aleksandr"]
[Result "0-1"]
[ECO "A10"]
[WhiteElo "2238"]
[BlackElo "2615"]
[Annotator "RC"]
[PlyCount "108"]
[EventDate "2019.06.27"]
[EventType "swiss"]
[EventCountry "RUS"]
[SourceTitle "playchess.com"]
[Source "ChessBase"]
[SourceQuality "1"]
[TimeControl "40/5400+30:1800+30"]

1. c4 {[%emt 0:00:00]} g6 {[%emt 0:00:09]} 2. g3 {[%emt 0:00:14]} Bg7 {[%emt 0:01:10]} 3. Bg2 {[%emt 0:00:11]} e6 {[%emt 0:01:23]} 4. Nc3 {[%emt 0:00:20]} Ne7 {[%emt 0:00:38]} 5. d4 {[%emt 0:13:55]} d5 {[%emt 0:01:06]} 6. cxd5 {[%emt 0:00:48]} exd5 {[%emt 0:00:26]} 7. h4 {[%emt 0:01:31]} h6 {[%emt 0:05:47]} 8. Bf4 {[%emt 0:02:49]} c6 {[%emt 0:01:10]} 9. Qd2 {[%emt 0:00:40]} Bf5 {[%emt 0:03:44]} 10. Nf3 {[%emt 0:06:01]} Nd7 {[%emt 0:01:06]} 11. O-O {[%emt 0:00:15]} Nb6 {[%emt 0:05:54]} 12. b3 {[%emt 0:00:43]} f6 {[%emt 0:00:53]} 13. a4 {[%emt 0:34:12]} g5 {[%emt 0:02:38]} 14. Be3 {[%emt 0:01:35]} a5 {[%emt 0:07:26]} 15. Rae1 {[%emt 0:07:45]} Qd7 {[%emt 0:04:53]} 16. Kh2 {[%emt 0:00:02]} Nbc8 {[%emt 0:05:40]} 17. Ng1 {[%emt 0:00:42]} Ng6 {[%emt 0:05:04]} 18. h5 {[%emt 0:02:35]} Nge7 {[%emt 0:05:59]} 19. f3 {[%emt 0:00:04]} O-O {[%emt 0:03:21]} 20. Bf2 {[%emt 0:02:31]} Be6 {[%emt 0:01:53]} 21. e4 {[%emt 0:02:53]} dxe4 {[%emt 0:01:59]} 22. Nxe4 {[%emt 0:00:11]} b6 {[%emt 0:00:59]} 23. Qd3 {[%emt 0:03:20]} Nd5 {[%emt 0:10:43]} 24. Ne2 {[%emt 0:01:18]} f5 {[%emt 0:05:43]} 25. Nd2 {[%emt 0:02:30]} Qf7 {[%emt 0:00:09]} 26. Nc3 {[%emt 0:02:59]} Qxh5+ {[%emt 0:02:36]} 27. Kg1 {[%emt 0:00:01]} Qf7 {[%emt 0:00:32]} 28. Qe2 {[%emt 0:02:04]} Re8 {[%emt 0:10:41]} 29. Nxd5 {[%emt 0:00:13]} cxd5 {[%emt 0:00:08]} 30. f4 {[%emt 0:00:05]} Nd6 {[%emt 0:00:22]} 31. fxg5 {[%emt 0:03:15]} hxg5 {[%emt 0:00:56]} 32. Nc4 {[%emt 0:00:27]} Rad8 {[%emt 0:03:43]} 33. Nxd6 {[%emt 0:01:05]} Rxd6 {[%emt 0:00:12]} 34. Qd2 {[%emt 0:01:20]} Qh5 {[%emt 0:01:44]} 35. b4 {[%emt 0:00:26]} Kf7 {[%emt 0:00:20]} 36. Be3 {[%emt 0:03:43]} axb4 {[%emt 0:00:56]} 37. Bxg5 {[%emt 0:02:05]} Bxd4+ {[%emt 0:00:32]} 38. Qxd4 {[%emt 0:00:03]} Qxg5 {[%emt 0:00:05]} 39. Qxb4 {[%emt 0:01:15]} Rc6 {[%emt 0:01:00]} 40. Qb3 {[%emt 0:00:00]} Qd2 {[%emt 0:00:00]} 41. Rxe6 {[%emt 0:10:16]} Rexe6 {[%emt 0:22:30]} 42. Bxd5 {[%emt 0:05:06]} Rc3 {[%emt 0:02:05]} 43. Bxe6+ {[%emt 0:00:18]} Kg7 {[%emt 0:00:25]} 44. Rf2 {[%emt 0:04:18]} Qe1+ {[%emt 0:01:43]} 45. Kg2 {[%emt 0:00:03]} Qe4+ {[%emt 0:01:19]} 46. Kh2 {[%emt 0:00:37]} Rxb3 {[%emt 0:01:24]} 47. Bxb3 {[%emt 0:00:01]} Qe3 {[%emt 0:00:37]} 48. Rb2 {[%emt 0:00:04]} Qc3 {[%emt 0:06:31]} 49. Rb1 {[%emt 0:00:01]} Kf6 {[%emt 0:01:15]} 50. Bd1 {[%emt 0:00:37]} Kg5 {[%emt 0:01:22]} 51. Kh3 {[%emt 0:04:38]} Qd3 {[%emt 0:00:14]} 52. Ra1 {[%emt 0:02:43]} f4 {[%emt 0:00:29]} 53. Kh2 {[%emt 0:00:22]} fxg3+ {[%emt 0:01:43]} 54. Kg2 {[%emt 0:00:06]} Qd2+ {[%emt 0:00:09]} 0-1

[Event "72nd RUS-ch Higher League 2019"]
[Site "Yaroslavl"]
[Date "2019.06.30"]
[Round "4.17"]
[White "Pridorozhni, Aleksei"]
[Black "Yanchenko, Roman"]
[Result "1-0"]
[ECO "C16"]
[WhiteElo "2588"]
[BlackElo "2478"]
[Annotator "ChessBase"]
[PlyCount "191"]
[EventDate "2019.06.27"]
[EventType "swiss"]
[EventCountry "RUS"]
[SourceTitle "playchess.com"]
[Source "ChessBase"]
[SourceQuality "1"]
[TimeControl "40/5400+30:1800+30"]

1. e4 {[%emt 0:00:00]} e6 {[%emt 0:00:00]} 2. d4 {[%emt 0:00:17]} d5 {[%emt 0:00:00]} 3. Nc3 {[%emt 0:00:16]} Bb4 {[%emt 0:00:00]} 4. e5 {[%emt 0:00:08]} Ne7 {[%emt 0:00:00]} 5. a3 {[%emt 0:00:14]} Bxc3+ {[%emt 0:00:00]} 6. bxc3 {[%emt 0:00:07]} b6 {[%emt 0:00:00]} 7. Qg4 {[%emt 0:00:54]} Kf8 {[%emt 0:00:01]} 8. a4 {[%emt 0:00:46]} Ba6 {[%emt 0:00:05]} 9. Bxa6 {[%emt 0:01:28]} Nxa6 {[%emt 0:00:04]} 10. Ne2 {[%emt 0:01:11]} c5 {[%emt 0:00:24]} 11. O-O {[%emt 0:00:24]} Rc8 {[%emt 0:04:38]} 12. Bg5 {[%emt 0:05:11]} h6 {[%emt 0:00:11]} 13. Bxe7+ Qxe7 {[%emt 0:09:24]} 14. c4 {[%emt 0:01:06]} dxc4 15. d5 {[%emt 0:06:22]} Nb4 {[%emt 0:00:45]} 16. Nf4 {[%emt 0:03:31]} Qg5 {[%emt 0:08:58]} 17. Qf3 {[%emt 0:01:55]} Kg8 {[%emt 0:00:05]} 18. dxe6 {[%emt 0:00:42]} fxe6 {[%emt 0:06:48]} 19. Nxe6 {[%emt 0:04:27]} Qe7 {[%emt 0:09:54]} 20. Nf4 {[%emt 0:03:22]} Nxc2 {[%emt 0:00:24]} 21. Rac1 {[%emt 0:29:26]} Nd4 {[%emt 0:00:06]} 22. Qe4 {[%emt 0:00:05]} Qf7 {[%emt 0:11:12]} 23. Rfe1 {[%emt 0:07:04]} g5 {[%emt 0:10:52]} 24. Nd5 {[%emt 0:12:32]} Kg7 {[%emt 0:00:48]} 25. Rxc4 {[%emt 0:00:49]} Rcd8 {[%emt 0:08:39]} 26. Rxd4 {[%emt 0:02:29]} cxd4 {[%emt 0:00:05]} 27. e6 {[%emt 0:00:05]} Qg6 {[%emt 0:05:16]} 28. Qxd4+ {[%emt 0:03:25]} Kh7 {[%emt 0:00:09]} 29. Nf6+ {[%emt 0:01:04]} Kg7 {[%emt 0:00:02]} 30. Nd7+ {[%emt 0:00:30]} Kh7 {[%emt 0:00:28]} 31. e7 {[%emt 0:01:35]} Rxd7 {[%emt 0:01:20]} 32. Qxd7 {[%emt 0:00:06]} Re8 {[%emt 0:00:15]} 33. h3 {[%emt 0:00:12]} Kg7 {[%emt 0:03:16]} 34. Re6 {[%emt 0:01:12]} Qb1+ {[%emt 0:00:18]} 35. Kh2 {[%emt 0:00:05]} Qf5 {[%emt 0:00:05]} 36. Qd4+ {[%emt 0:03:09]} Kf7 {[%emt 0:00:40]} 37. Rxh6 {[%emt 0:00:57]} Rxe7 {[%emt 0:00:13]} 38. Rc6 {[%emt 0:04:34]} Rd7 {[%emt 0:04:06]} 39. Qe3 {[%emt 0:01:12]} Re7 {[%emt 0:01:09]} 40. Qd4 {[%emt 0:00:00]} Rd7 {[%emt 0:00:00]} 41. Qc4+ {[%emt 0:06:57]} Kg7 {[%emt 0:02:36]} 42. Qc3+ {[%emt 0:00:31]} Kf7 {[%emt 0:00:08]} 43. Qb3+ {[%emt 0:00:18]} Kg7 {[%emt 0:00:51]} 44. Qg3 {[%emt 0:01:18]} Rf7 {[%emt 0:04:04]} 45. Rc4 {[%emt 0:01:28]} Kh6 {[%emt 0:03:10]} 46. f3 {[%emt 0:00:52]} Qd5 47. Rg4 Rf5 {[%emt 0:02:07]} 48. Re4 {[%emt 0:04:00]} Qf7 {[%emt 0:01:13]} 49. Qb8 {[%emt 0:01:49]} Kg7 50. Rg4 {[%emt 0:01:54]} Kh7 {[%emt 0:03:42]} 51. Rd4 {[%emt 0:02:49]} Rd5 {[%emt 0:01:33]} 52. Rxd5 {[%emt 0:01:25]} Qxd5 {[%emt 0:00:00]} 53. Qxa7+ {[%emt 0:01:46]} Kg8 {[%emt 0:00:16]} 54. Qb8+ {[%emt 0:00:08]} Kh7 {[%emt 0:00:05]} 55. Qc7+ {[%emt 0:00:57]} Kg8 {[%emt 0:00:04]} 56. Qxb6 Qe5+ {[%emt 0:00:03]} 57. Kh1 {[%emt 0:00:35]} Qa1+ {[%emt 0:00:02]} 58. Qg1 {[%emt 0:00:00]} Qxa4 {[%emt 0:00:12]} 59. Qe3 {[%emt 0:00:08]} Qd1+ {[%emt 0:00:03]} 60. Kh2 {[%emt 0:00:22]} Qd6+ {[%emt 0:01:05]} 61. Kg1 Qg3 62. Qe7 {[%emt 0:01:14]} Qf4 {[%emt 0:00:54]} 63. Qe6+ {[%emt 0:00:48]} Kg7 {[%emt 0:00:00]} 64. Qg4 {[%emt 0:00:07]} Qc1+ {[%emt 0:00:05]} 65. Kh2 Kf6 66. h4 {[%emt 0:01:03]} gxh4 {[%emt 0:00:34]} 67. Qxh4+ {[%emt 0:00:04]} Kg6 {[%emt 0:00:04]} 68. Qe4+ {[%emt 0:00:14]} Kh6 {[%emt 0:00:14]} 69. Kg3 {[%emt 0:00:22]} Qg5+ {[%emt 0:00:14]} 70. Qg4 {[%emt 0:00:08]} Qa5 {[%emt 0:00:04]} 71. Qe6+ {[%emt 0:00:26]} Kh5 {[%emt 0:00:09]} 72. Kh3 {[%emt 0:00:45]} Qa1 {[%emt 0:01:14]} 73. Qf5+ {[%emt 0:01:28]} Kh6 {[%emt 0:00:02]} 74. Qe4 {[%emt 0:00:09]} Qh1+ {[%emt 0:00:17]} 75. Kg3 {[%emt 0:00:04]} Qa1 {[%emt 0:00:05]} 76. f4 {[%emt 0:00:21]} Qg7+ {[%emt 0:00:20]} 77. Kh3 {[%emt 0:00:14]} Qc3+ {[%emt 0:00:35]} 78. g3 {[%emt 0:00:14]} Qf6 {[%emt 0:01:11]} 79. f5 {[%emt 0:00:19]} Qa1 {[%emt 0:00:53]} 80. Qe6+ {[%emt 0:01:35]} Kg7 {[%emt 0:00:01]} 81. Qe7+ {[%emt 0:02:32]} Kh6 {[%emt 0:00:21]} 82. Qe3+ {[%emt 0:00:17]} Kg7 {[%emt 0:00:05]} 83. g4 {[%emt 0:00:19]} Qf6 {[%emt 0:00:27]} 84. Kg3 {[%emt 0:00:35]} Qd6+ {[%emt 0:00:16]} 85. Qf4 {[%emt 0:00:13]} Qd1 {[%emt 0:01:12]} 86. Qe5+ {[%emt 0:00:26]} Kf7 {[%emt 0:00:03]} 87. Qc7+ {[%emt 0:01:46]} Kf6 {[%emt 0:00:13]} 88. Qc3+ {[%emt 0:00:14]} Kf7 {[%emt 0:00:03]} 89. Kh4 {[%emt 0:00:26]} Qd8+ {[%emt 0:01:23]} 90. g5 {[%emt 0:00:24]} Kg8 {[%emt 0:00:30]} 91. Qe5 {[%emt 0:00:53]} Qa8 {[%emt 0:00:16]} 92. Kg3 {[%emt 0:01:10]} Qa3+ {[%emt 0:00:19]} 93. Kg4 {[%emt 0:00:46]} Qa8 {[%emt 0:00:15]} 94. Qe7 {[%emt 0:01:25]} Qg2+ {[%emt 0:06:32]} 95. Kh5 {[%emt 0:00:25]} Qe2+ {[%emt 0:00:03]} 96. Qxe2 {[%emt 0:00:05]} 1-0

[Event "72nd RUS-ch Higher League 2019"]
[Site "Yaroslavl"]
[Date "2019.06.30"]
[Round "4.18"]
[White "Romanov, Evgeny"]
[Black "Eraschenkov, Denis"]
[Result "1/2-1/2"]
[ECO "A48"]
[WhiteElo "2577"]
[BlackElo "2379"]
[Annotator "ChessBase"]
[PlyCount "90"]
[EventDate "2019.06.27"]
[EventType "swiss"]
[EventCountry "RUS"]
[SourceTitle "playchess.com"]
[Source "ChessBase"]
[SourceQuality "1"]
[TimeControl "40/5400+30:1800+30"]

1. d4 {[%emt 0:03:25]} Nf6 {[%emt 0:00:00]} 2. Nf3 {[%emt 0:00:11]} g6 {[%emt 0:00:23]} 3. Bg5 {[%emt 0:00:10]} Bg7 {[%emt 0:00:16]} 4. Nbd2 {[%emt 0:00:10]} d6 {[%emt 0:01:49]} 5. c3 {[%emt 0:00:30]} O-O {[%emt 0:06:09]} 6. e3 {[%emt 0:00:17]} Nbd7 {[%emt 0:05:45]} 7. Bd3 {[%emt 0:00:24]} e5 {[%emt 0:07:38]} 8. O-O {[%emt 0:01:08]} c6 {[%emt 0:12:03]} 9. a4 {[%emt 0:02:13]} Qc7 {[%emt 0:01:13]} 10. e4 {[%emt 0:04:20]} h6 {[%emt 0:02:06]} 11. Bh4 {[%emt 0:00:30]} Nh5 {[%emt 0:01:52]} 12. Re1 {[%emt 0:02:09]} Re8 {[%emt 0:04:53]} 13. Bf1 {[%emt 0:02:57]} Nf4 {[%emt 0:08:31]} 14. Nc4 {[%emt 0:03:49]} Nb6 {[%emt 0:01:10]} 15. Nfd2 {[%emt 0:08:50]} Nxc4 {[%emt 0:03:26]} 16. Nxc4 {[%emt 0:00:16]} exd4 {[%emt 0:11:38]} 17. cxd4 {[%emt 0:05:30]} Be6 {[%emt 0:03:19]} 18. Ne3 {[%emt 0:14:02]} Bd7 {[%emt 0:08:46]} 19. Nc2 {[%emt 0:04:46]} Rac8 {[%emt 0:10:24]} 20. Qd2 {[%emt 0:04:57]} Ne6 {[%emt 0:00:23]} 21. b4 {[%emt 0:03:26]} c5 {[%emt 0:02:05]} 22. bxc5 {[%emt 0:02:05]} dxc5 {[%emt 0:00:18]} 23. d5 {[%emt 0:00:59]} Qf4 {[%emt 0:00:59]} 24. Qxf4 {[%emt 0:05:24]} Nxf4 {[%emt 0:00:05]} 25. Ra3 {[%emt 0:00:14]} c4 {[%emt 0:00:43]} 26. f3 {[%emt 0:03:31]} Nd3 {[%emt 0:03:29]} 27. Rd1 {[%emt 0:08:58]} f5 {[%emt 0:01:11]} 28. exf5 {[%emt 0:02:39]} Bxf5 {[%emt 0:00:15]} 29. g4 {[%emt 0:00:53]} Nb2 {[%emt 0:00:44]} 30. Rc1 {[%emt 0:01:36]} Bd7 {[%emt 0:00:15]} 31. a5 {[%emt 0:02:18]} Re5 {[%emt 0:01:02]} 32. Bf2 {[%emt 0:06:26]} Nd3 {[%emt 0:01:10]} 33. Rd1 {[%emt 0:00:23]} Nxf2 {[%emt 0:00:54]} 34. Kxf2 {[%emt 0:00:01]} Rc5 {[%emt 0:01:03]} 35. d6 {[%emt 0:02:48]} Rxa5 {[%emt 0:00:42]} 36. Bxc4+ {[%emt 0:00:27]} Kf8 {[%emt 0:00:10]} 37. Rxa5 {[%emt 0:01:22]} Rxa5 {[%emt 0:00:02]} 38. Bd5 {[%emt 0:01:52]} b6 {[%emt 0:00:47]} 39. Ne3 {[%emt 0:00:55]} Rc5 {[%emt 0:00:46]} 40. f4 {[%emt 0:00:00]} b5 {[%emt 0:00:00]} 41. f5 {[%emt 0:03:16]} gxf5 {[%emt 0:21:40]} 42. gxf5 {[%emt 0:00:19]} Be5 {[%emt 0:02:09]} 43. Be6 {[%emt 0:13:13]} Ke8 {[%emt 0:00:34]} 44. Nd5 {[%emt 0:03:25]} Kd8 {[%emt 0:02:37]} 45. Ke3 {[%emt 0:06:04]} Rc4 {[%emt 0:05:02] Ke4} 1/2-1/2

[Event "72nd RUS-ch Higher League 2019"]
[Site "Yaroslavl"]
[Date "2019.06.30"]
[Round "4.19"]
[White "Nozdrachev, Vladislav"]
[Black "Frolyanov, Dmitry"]
[Result "0-1"]
[ECO "B31"]
[WhiteElo "2481"]
[BlackElo "2538"]
[Annotator "ChessBase"]
[PlyCount "92"]
[EventDate "2019.06.27"]
[EventType "swiss"]
[EventCountry "RUS"]
[SourceTitle "playchess.com"]
[Source "ChessBase"]
[SourceQuality "1"]
[TimeControl "40/5400+30:1800+30"]

1. e4 {[%emt 0:00:00]} c5 {[%emt 0:00:00]} 2. Nf3 {[%emt 0:00:00]} Nc6 {[%emt 0:00:00]} 3. Bb5 {[%emt 0:00:00]} g6 {[%emt 0:00:00]} 4. O-O {[%emt 0:00:01]} Bg7 {[%emt 0:00:00]} 5. Re1 {[%emt 0:00:36]} e5 {[%emt 0:00:37]} 6. Bxc6 {[%emt 0:00:06]} dxc6 {[%emt 0:00:07]} 7. d3 {[%emt 0:00:10]} Qe7 {[%emt 0:00:26]} 8. a4 {[%emt 0:00:08]} a5 {[%emt 0:00:45]} 9. Na3 {[%emt 0:01:36]} Nf6 {[%emt 0:01:54]} 10. Bg5 {[%emt 0:00:34]} Qc7 {[%emt 0:09:46]} 11. Nc4 {[%emt 0:03:02]} Nh5 {[%emt 0:01:48]} 12. Be3 {[%emt 0:00:48]} b6 {[%emt 0:04:09]} 13. b4 {[%emt 0:00:33]} cxb4 {[%emt 0:24:10]} 14. Bxb6 {[%emt 0:03:24]} Qe7 {[%emt 0:00:29]} 15. d4 {[%emt 0:02:14]} exd4 {[%emt 0:02:59]} 16. e5 {[%emt 0:00:28]} O-O {[%emt 0:00:46]} 17. Qxd4 {[%emt 0:02:24]} Qd7 {[%emt 0:09:32]} 18. Bc5 {[%emt 0:01:42]} Rd8 {[%emt 0:12:53]} 19. Nb6 {[%emt 0:03:33]} Qe8 {[%emt 0:03:50]} 20. Qe3 {[%emt 0:00:51]} Bd7 {[%emt 0:07:50]} 21. Nxa8 {[%emt 0:00:32]} Rxa8 {[%emt 0:00:03]} 22. Nd4 {[%emt 0:01:25]} Bh8 {[%emt 0:00:30]} 23. c3 {[%emt 0:02:13]} bxc3 {[%emt 0:00:23]} 24. Rac1 {[%emt 0:00:30]} Ng7 {[%emt 0:00:20]} 25. Rxc3 {[%emt 0:02:02]} Ne6 {[%emt 0:00:36]} 26. Rc2 {[%emt 0:06:00]} Bg7 {[%emt 0:01:12]} 27. Nxe6 {[%emt 0:00:24]} Bxe6 {[%emt 0:00:06]} 28. Rb2 {[%emt 0:00:11]} h5 {[%emt 0:01:11]} 29. Rb7 {[%emt 0:03:15]} Bd5 {[%emt 0:00:42]} 30. Qf4 {[%emt 0:04:05]} Rb8 {[%emt 0:02:31]} 31. Re7 {[%emt 0:08:03]} Qd8 {[%emt 0:00:10]} 32. h3 {[%emt 0:00:35]} Be6 {[%emt 0:03:11]} 33. Bd6 {[%emt 0:00:12]} Rb2 {[%emt 0:03:25]} 34. Qd4 {[%emt 0:00:48]} Rb4 {[%emt 0:01:50]} 35. Qd1 {[%emt 0:03:59]} Rb2 {[%emt 0:00:58]} 36. Qc1 {[%emt 0:01:44]} Qb6 {[%emt 0:00:28]} 37. Re8+ {[%emt 0:00:10]} Kh7 {[%emt 0:00:10]} 38. Bc5 {[%emt 0:00:05]} Qb3 {[%emt 0:00:36]} 39. Bf8 {[%emt 0:00:19]} Rc2 {[%emt 0:02:16]} 40. Qg5 {[%emt 0:00:00]} Bxf8 {[%emt 0:00:00]} 41. Rxf8 {[%emt 0:15:14]} Qb4 {[%emt 0:01:17]} 42. Rxf7+ {[%emt 0:00:13]} Bxf7 {[%emt 0:00:05]} 43. Rd1 {[%emt 0:00:09]} Bd5 {[%emt 0:04:02]} 44. Qf6 {[%emt 0:02:21]} Qb7 {[%emt 0:01:58]} 45. f3 {[%emt 0:03:24]} Qg7 {[%emt 0:02:20]} 46. Qd6 {[%emt 0:00:19]} Re2 {[%emt 0:00:22]} 0-1

[Event "72nd RUS-ch Higher League 2019"]
[Site "Yaroslavl"]
[Date "2019.06.30"]
[Round "4.20"]
[White "Belozerov, Andrei"]
[Black "Rychkov, Oleg"]
[Result "1-0"]
[ECO "B33"]
[WhiteElo "2533"]
[BlackElo "2409"]
[Annotator "ChessBase"]
[PlyCount "73"]
[EventDate "2019.06.27"]
[EventType "swiss"]
[EventCountry "RUS"]
[SourceTitle "playchess.com"]
[Source "ChessBase"]
[SourceQuality "1"]
[TimeControl "40/5400+30:1800+30"]

1. e4 {[%emt 0:00:00]} c5 {[%emt 0:00:00]} 2. Nf3 {[%emt 0:00:00]} Nc6 {[%emt 0:00:00]} 3. d4 {[%emt 0:00:08]} cxd4 {[%emt 0:00:00]} 4. Nxd4 {[%emt 0:00:06]} Nf6 {[%emt 0:00:04]} 5. Nc3 {[%emt 0:00:13]} e5 {[%emt 0:00:10]} 6. Ndb5 {[%emt 0:00:12]} d6 {[%emt 0:00:11]} 7. Bg5 {[%emt 0:00:30]} a6 {[%emt 0:00:09]} 8. Na3 {[%emt 0:00:08]} b5 {[%emt 0:00:04]} 9. Nd5 {[%emt 0:00:18]} Be7 {[%emt 0:00:08]} 10. Bxf6 {[%emt 0:00:07]} Bxf6 {[%emt 0:00:04]} 11. c3 {[%emt 0:00:07]} O-O {[%emt 0:00:32]} 12. Nc2 {[%emt 0:00:46]} Bg5 {[%emt 0:00:12]} 13. a4 {[%emt 0:00:47]} bxa4 {[%emt 0:02:01]} 14. Rxa4 {[%emt 0:00:08]} a5 {[%emt 0:01:21]} 15. Bc4 {[%emt 0:01:49]} Rb8 {[%emt 0:01:19]} 16. b3 {[%emt 0:03:14]} Kh8 {[%emt 0:03:04]} 17. Nce3 {[%emt 0:04:38]} g6 {[%emt 0:02:27]} 18. h4 Bxh4 {[%emt 0:03:35]} 19. g3 {[%emt 0:05:34]} Bg5 {[%emt 0:04:45]} 20. f4 {[%emt 0:00:20]} exf4 {[%emt 0:00:05]} 21. gxf4 {[%emt 0:00:15]} Bh4+ 22. Kf1 f5 {[%emt 0:07:51]} 23. Ra2 {[%emt 0:04:24]} fxe4 {[%emt 0:01:34]} 24. Rah2 {[%emt 0:01:15]} g5 {[%emt 0:00:11]} 25. Qh5 {[%emt 0:07:20]} Ne5 {[%emt 0:12:49]} 26. Ke2 {[%emt 0:01:48]} Nxc4 {[%emt 0:00:30]} 27. fxg5 {[%emt 0:01:01]} Nxe3 {[%emt 0:00:38]} 28. Rxh4 {[%emt 0:02:57]} Rb7 {[%emt 0:01:36]} 29. Kxe3 {[%emt 0:04:10]} Rf3+ {[%emt 0:02:32]} 30. Kxe4 {[%emt 0:11:10]} Rff7 {[%emt 0:01:13]} 31. g6 {[%emt 0:01:11]} Bf5+ {[%emt 0:08:03]} 32. Qxf5 {[%emt 0:03:49]} Rxf5 {[%emt 0:01:46]} 33. Rxh7+ {[%emt 0:00:46]} Rxh7 {[%emt 0:00:05]} 34. Rxh7+ {[%emt 0:00:10]} Kg8 {[%emt 0:00:01]} 35. Kxf5 {[%emt 0:01:38]} Qc8+ {[%emt 0:00:31]} 36. Kf6 {[%emt 0:00:38]} Qf8+ {[%emt 0:01:13]} 37. Rf7 {[%emt 0:00:37]} 1-0

[Event "72nd RUS-ch Higher League 2019"]
[Site "Yaroslavl"]
[Date "2019.06.30"]
[Round "4.22"]
[White "Lesovoi, Evgenij"]
[Black "Alekseenko, Kirill"]
[Result "0-1"]
[ECO "D30"]
[WhiteElo "2366"]
[BlackElo "2650"]
[Annotator "RC"]
[PlyCount "70"]
[EventDate "2019.06.27"]
[EventType "swiss"]
[EventCountry "RUS"]
[SourceTitle "playchess.com"]
[Source "ChessBase"]
[SourceQuality "1"]
[TimeControl "40/5400+30:1800+30"]

1. d4 {[%emt 0:00:00]} Nf6 {[%emt 0:00:00]} 2. Nf3 {[%emt 0:00:02]} e6 {[%emt 0:00:02]} 3. c4 {[%emt 0:00:35]} d5 {[%emt 0:00:29]} 4. Bg5 {[%emt 0:02:21]} dxc4 {[%emt 0:06:14]} 5. Qa4+ {[%emt 0:02:15]} Nbd7 {[%emt 0:02:26]} 6. Qxc4 {[%emt 0:01:38]} a6 {[%emt 0:08:41]} 7. e4 {[%emt 0:33:00]} h6 {[%emt 0:02:17]} 8. Bxf6 {[%emt 0:00:19]} Nxf6 {[%emt 0:00:09]} 9. Nbd2 {[%emt 0:00:21]} b5 {[%emt 0:05:25]} 10. Qc2 {[%emt 0:00:56]} Bb7 {[%emt 0:01:02]} 11. Bd3 {[%emt 0:00:24]} Bb4 {[%emt 0:07:57]} 12. a3 {[%emt 0:03:42]} Bxd2+ {[%emt 0:00:55]} 13. Kxd2 {[%emt 0:00:06]} c5 {[%emt 0:01:00]} 14. dxc5 {[%emt 0:01:50]} Bxe4 {[%emt 0:04:54]} 15. Ke2 {[%emt 0:01:41]} Bd5 {[%emt 0:03:00]} 16. Rhd1 {[%emt 0:01:16]} Qc7 {[%emt 0:02:59]} 17. g3 {[%emt 0:02:20]} O-O {[%emt 0:00:47]} 18. Nd2 {[%emt 0:03:10]} Qe5+ {[%emt 0:05:30]} 19. Kf1 {[%emt 0:01:20]} Qh5 {[%emt 0:00:53]} 20. Kg1 {[%emt 0:04:30]} Ng4 {[%emt 0:01:38]} 21. Nf1 {[%emt 0:00:21]} Bf3 {[%emt 0:09:30]} 22. Be2 {[%emt 0:04:40]} Nxh2 {[%emt 0:01:46]} 23. Bxf3 {[%emt 0:00:20]} Nxf3+ {[%emt 0:00:10]} 24. Kg2 {[%emt 0:00:05]} Ng5 {[%emt 0:02:12]} 25. Qd3 {[%emt 0:01:26]} e5 {[%emt 0:02:48]} 26. Nh2 {[%emt 0:02:53]} e4 {[%emt 0:00:36]} 27. Qe3 {[%emt 0:01:38]} f5 {[%emt 0:01:32]} 28. Qf4 {[%emt 0:04:59]} Nh3 {[%emt 0:02:53]} 29. Qh4 {[%emt 0:05:38]} Qxh4 {[%emt 0:00:09]} 30. gxh4 {[%emt 0:00:06]} Nf4+ {[%emt 0:00:04]} 31. Kg3 {[%emt 0:00:23]} Nd3 {[%emt 0:00:48]} 32. b4 {[%emt 0:00:33]} f4+ {[%emt 0:00:23]} 33. Kg2 {[%emt 0:00:33]} Rad8 {[%emt 0:00:32]} 34. Ra2 {[%emt 0:03:16]} f3+ {[%emt 0:01:28]} 35. Kg1 {[%emt 0:01:14]} Nxf2 {[%emt 0:00:51]} 0-1